Cogmind - Beta 10.1 @@@ ROGUE MODE // 2020.09.28 @ 01:23:18 Player: GMCrimson Result: Self-destructed Performance ------------- Evolutions (5) 2500 Regions Visited (15) 3000 Robots Destroyed (116) 580 Value Destroyed (3175) 3175 Prototype IDs (44) 880 Alien Tech Used (1) 200 Bonus (261) 261 TOTAL SCORE: 10596 Bonus ------- Aligned with FarCom 300 Met Zhirov 300 Friendly Fire -339 Cogmind --------- Core Integrity 714/1000 Matter 32/300 Energy 50/100 System Corruption 3% Temperature Cool (2) Movement Flying (32) Location -4/Proximity Caves Parts ------- > --- POWER (3) -------- (None) > --- PROPULSION (6) --- Field Propulsion Drive Cooled Nuclear Pulse Thruster Cooled Nuclear Pulse Thruster Cooled Nuclear Pulse Thruster > --- UTILITY (6) ------ Advanced Cooling System Large Storage Unit Enhanced Optical Array Advanced Signal Interpreter > --- WEAPON (2) ------- (None) > --- INVENTORY (10) --- Field Propulsion Drive Advanced Terrain Scan Processor Improved Transmission Jammer Improved ECM Suite Reaction Control System Advanced Shield Generator Integrated Dissipator Improved Remote Datajack Field Lobotomy Kit Scythe Peak State ------------ > --- POWER ------------ Micro Nuclear Core Light Angular Momentum Engine Light Fission Core > --- PROPULSION ------- Field Propulsion Drive Cooled Nuclear Pulse Thruster Cooled Nuclear Pulse Thruster Cooled Nuclear Pulse Thruster Nuclear Pulse Array > --- UTILITY ---------- Advanced Cooling System Large Storage Unit Enhanced Optical Array Long-range Sensor Array Advanced Signal Interpreter Reaction Control System > --- WEAPON ----------- (None) > --- INVENTORY -------- Field Propulsion Drive Advanced Terrain Scan Processor Improved Transmission Jammer Improved ECM Suite Reaction Control System Advanced Shield Generator Integrated Dissipator Improved Remote Datajack Field Lobotomy Kit Scythe [Rating: 84] Favorites ----------- Power Ion Engine Engine Ion Engine Power Core Micro Nuclear Core Propulsion Light Treads Treads Light Treads Leg Aluminum Leg Wheel Compact Wheel Flight Unit Improved VTOL Module Utility Large Storage Unit Device Improved Heat Sink Storage Large Storage Unit Processor Enhanced Optical Array Hackware Hacking Suite Protection Light Armor Plating Weapon Assault Rifle Energy Gun Particle Gun Energy Cannon Cooled Plasma Cannon Ballistic Gun Assault Rifle Launcher Advanced EMP Blaster Special Weapon Field Lobotomy Kit Slashing Weapon Scythe Special Melee Weapon Improved Datajack Build | -11 -10 -10 -9 -9 -9 -8 -8 -8 -7 -6 -5 -5 -5 -5 -4 ------- Run | Scr Mat Min Mat Min Exi Min Mat Sto Fac Fac Fac Upp Upp Zhi Pro Slots Evolved 10 | . . . 2 . . . 2 . 2 2 2 . . . . Power 2 | . . . . . . . . . 1 . 1 . . . . Propulsion 4 | . . . . . . . 2 . . 1 1 . . . . Utility 4 | . . . 2 . . . . . 1 1 . . . . . Weapon . | . . . . . . . . . . . . . . . . Parts Attached 125 | 6 14 . 15 . 3 . 6 24 19 14 13 2 2 7 . Power 12 | 1 3 . 3 . . . . 1 2 1 1 . . . . Engine 8 | 1 3 . 3 . . . . . . . 1 . . . . Core 4 | . . . . . . . . 1 2 1 . . . . . Reactor . | . . . . . . . . . . . . . . . . Propulsion 45 | 2 3 . 6 . . . 2 8 7 6 7 . 1 3 . Treads 13 | . . . 3 . . . 2 8 . . . . . . . Leg 4 | . 2 . 2 . . . . . . . . . . . . Wheel 3 | 2 1 . . . . . . . . . . . . . . Hover . | . . . . . . . . . . . . . . . . Flight 25 | . . . 1 . . . . . 7 6 7 . 1 3 . Utility 45 | 1 4 . 3 . 3 . 2 6 10 5 4 2 1 4 . Device 23 | . 1 . 2 . 1 . . 2 5 3 4 2 . 3 . Storage 6 | 1 3 . . . 1 . . . 1 . . . . . . Processor 6 | . . . . . . . 1 . 3 1 . . 1 . . Hackware 2 | . . . . . . . . . 1 1 . . . . . Protection 8 | . . . 1 . 1 . 1 4 . . . . . 1 . Artifact . | . . . . . . . . . . . . . . . . Weapon 23 | 2 4 . 3 . . . 2 9 . 2 1 . . . . Energy Gun 2 | . 1 . 1 . . . . . . . . . . . . Energy Cannon 2 | . . . . . . . . 2 . . . . . . . Ballistic Gun 13 | 2 3 . 2 . . . 2 4 . . . . . . . Ballistic Cannon . | . . . . . . . . . . . . . . . . Launcher 3 | . . . . . . . . 3 . . . . . . . Special Weapon 1 | . . . . . . . . . . 1 . . . . . Impact Weapon . | . . . . . . . . . . . . . . . . Slashing Weapon 1 | . . . . . . . . . . 1 . . . . . Piercing Weapon . | . . . . . . . . . . . . . . . . Special Melee Weapon 1 | . . . . . . . . . . . 1 . . . . Unidentified Prototypes 9 | . . . 1 . . . . 3 1 . 1 . . 3 . Parts Lost 20 | . 5 . 5 . . . 1 1 1 1 . . . . 6 Power 7 | . 1 . 3 . . . . . . . . . . . 3 Propulsion 3 | . 1 . 1 . . . . . . . . . . . 1 Utility 5 | . . . . . . . 1 1 . 1 . . . . 2 Weapon 5 | . 3 . 1 . . . . . 1 . . . . . . Highest Loss Streak 6 | . 3 . 1 . . . 1 1 1 1 . . . . 6 Average Slot Usage (%) 88 | . 95 100 88 100 96 88 80 88 90 87 82 82 82 81 68 Engine 7 | . 13 14 10 11 11 11 9 5 . . 5 5 5 5 1 Core 4 | . . . . . . . . 3 14 13 11 11 11 11 6 Treads 13 | . . . 7 22 22 22 26 36 2 . . . . . . Leg 3 | . 6 28 14 . . . . . . . . . . . . Wheel 2 | . 20 . . . . . . . . . . . . . . Flight 8 | . . . . . . . . . 27 33 31 29 29 29 28 Device 7 | . 2 . 8 11 10 11 2 4 6 12 9 14 17 15 12 Storage 13 | . 22 28 22 22 19 11 9 9 7 6 5 5 5 5 5 Processor 4 | . . . . . . . 6 3 13 13 11 7 7 11 11 Hackware 1 | . . . . . . . . . 6 6 5 5 3 . . Protection 4 | . . . 2 11 10 11 8 8 . . . . . . . Energy Gun 2 | . 2 . 3 11 11 11 2 . 6 . . . . . . Energy Cannon 1 | . . . . . . . . 7 . . . . . . . Ballistic Gun 10 | . 25 28 18 11 11 11 15 7 . . . . . . . Naked Turns . | . . . . . . . . . . . . . . . . Heaviest Build 115 | 13 39 39 47 47 95 95 97 115 115 34 42 45 44 45 45 Greatest Support 88 | 32 32 20 40 40 40 40 80 88 80 34 52 52 52 56 56 Greatest Overweight (x) 3 | . 3 1 1 1 2 2 2 1 1 . . . . . 1 Average Overweight (x) . | . . 1 . 1 1 2 1 1 . . . . . . . Largest Inventory Capacity 36 | 6 16 16 16 16 36 24 24 24 30 10 10 10 10 10 10 Average Capacity 16 | 5 8 16 16 16 17 24 24 24 11 10 10 10 10 10 10 Most Carried 24 | 6 8 8 16 16 18 16 23 24 24 10 10 10 10 10 10 Average Carried 14 | 3 6 8 11 16 15 16 19 23 10 9 9 9 10 9 10 Final Capacity 24 | 6 16 16 16 16 24 24 24 24 10 10 10 10 10 10 10 Final Carried 24 | 6 8 8 16 16 16 16 23 24 10 10 10 10 10 10 10 Class Distribution -------------------- 34% | Mutant 34% | Hauler-Mutant 8% | Generator-Scout 6% | Scavenger-Sprinter 5% | Scout 3% | Scavenger-Mutant 3% | Generator-Sprinter Dominant Class ---------------- Mutant | -10/Materials Mutant | -10/Mines Mutant | -9/Materials Mutant | -9/Mines Mutant | -9/Exiles Hauler-Mutant | -8/Mines Hauler-Mutant | -8/Materials Hauler-Mutant | -8/Storage Scavenger-Sprinter | -7/Factory Scout | -6/Factory Generator-Scout | -5/Factory Generator-Sprinter | -5/Upper Caves Generator-Sprinter | -5/Upper Caves Generator-Scout | -5/Zhirov Scout | -4/Proximity Caves Resources | -11 -10 -10 -9 -9 -9 -8 -8 -8 -7 -6 -5 -5 -5 -5 -4 ----------- Run | Scr Mat Min Mat Min Exi Min Mat Sto Fac Fac Fac Upp Upp Zhi Pro Matter Collected 2613 | 159 630 30 587 . . . 421 489 89 114 . 70 24 . . Remotely . | . . . . . . . . . . . . . . . . Salvage Created 4803 | . 679 42 1254 . . . 698 2106 24 . . . . . . Parts 291 | . 40 6 81 . . . 46 115 3 . . . . . . Haulers Intercepted 8 | . 2 . 2 . . . . 4 . . . . . . . Recyclers Shooed 5 | . 3 . . . . . . 2 . . . . . . . Parts Field Recycled . | . . . . . . . . . . . . . . . . Retrieved Matter . | . . . . . . . . . . . . . . . . Parts Self-Destructed 1 | . . . . . . . . . . . . 1 . . . Prevented . | . . . . . . . . . . . . . . . . Kills | -11 -10 -10 -9 -9 -9 -8 -8 -8 -7 -6 -5 -5 -5 -5 -4 ------- Run | Scr Mat Min Mat Min Exi Min Mat Sto Fac Fac Fac Upp Upp Zhi Pro Combat Hostiles Destroyed 84 | . 12 3 27 . . . 9 33 . . . . . . . Guns 52 | . 12 3 27 . . . 9 1 . . . . . . . Cannons 13 | . . . . . . . . 13 . . . . . . . AOE 17 | . . . . . . . . 17 . . . . . . . Classes Destroyed 12 | . 6 . 4 . . . 1 1 . . . . . . . Worker 5 | . . . 1 . . . 1 3 . . . . . . . Builder 2 | . 1 . . . . . . 1 . . . . . . . Hauler 8 | . 2 . 2 . . . . 4 . . . . . . . Recycler 6 | . 1 . . . . . 2 3 . . . . . . . Operator 2 | . . . . . . . 1 . 1 . . . . . . Watcher 7 | . 2 . 3 . . . 1 1 . . . . . . . Swarmer 20 | . 3 3 4 . . . 3 7 . . . . . . . Grunt 46 | . 9 . 16 . . . 4 17 . . . . . . . Brawler 2 | . . . 2 . . . . . . . . . . . . Duelist 2 | . . . 1 . . . . 1 . . . . . . . Sentry 12 | . . . 4 . . . 2 6 . . . . . . . Hunter 2 | . . . . . . . . 2 . . . . . . . Thug 2 | . . . . . . . . 2 . . . . . . . Best Kill Streak 6 | . 6 3 5 . . . 4 6 1 . . . . . . Combat Bots Only 5 | . 5 3 4 . . . 3 5 . . . . . . . Max Kills in Single Turn 4 | . 1 2 2 . . . 1 4 1 . . . . . . Gunslinging 1 | . . 1 . . . . . . . . . . . . . Exploded 3 | . . . . . . . . 3 . . . . . . . Melee . | . . . . . . . . . . . . . . . . Uniques/NPCs Destroyed . | . . . . . . . . . . . . . . . . Combat | -11 -10 -10 -9 -9 -9 -8 -8 -8 -7 -6 -5 -5 -5 -5 -4 -------- Run | Scr Mat Min Mat Min Exi Min Mat Sto Fac Fac Fac Upp Upp Zhi Pro Damage Taken 4536 | . 821 41 1100 . . . 438 1179 83 152 167 42 18 . 495 Core 681 | . 147 8 144 . . . 43 77 18 35 44 . . . 165 Absorbed by Shields . | . . . . . . . . . . . . . . . . Core Remaining (%) 78 | 100 . 38 . . . 64 . 78 97 95 . . . . . Volleys Fired 288 | . 78 5 95 . . . 35 71 3 1 . . . . . Largest 2 | . 2 2 2 . . . 2 2 1 1 . . . . . Hottest 141 | . 70 40 88 . . . 88 141 40 . . . . . . Shots Fired 542 | . 155 10 190 . . . 70 113 3 1 . . . . . Gun 468 | . 155 10 190 . . . 70 40 3 . . . . . . Cannon 57 | . . . . . . . . 57 . . . . . . . Launcher 16 | . . . . . . . . 16 . . . . . . . Special 1 | . . . . . . . . . . 1 . . . . . Kinetic 410 | . 138 10 154 . . . 68 40 . . . . . . . Thermal 115 | . 17 . 36 . . . 2 57 3 . . . . . . Explosive 2 | . . . . . . . . 2 . . . . . . . Electromagnetic 14 | . . . . . . . . 14 . . . . . . . Robot Hit Streak 14 | . 9 4 13 . . . 11 14 3 4 . . . . . Robot Miss Streak 6 | . 3 2 4 . . . 6 4 . . . . . . . Penetration Max . | . . . . . . . . . . . . . . . . Secondary Targets 5 | . 1 1 2 . . . 1 . . . . . . . . Max Gunslinging Chain 1 | . 1 1 1 . . . 1 . . . . . . . . Shots Hit Robots 381 | . 108 7 127 . . . 65 70 3 1 . . . . . Core Hits 208 | . 34 3 46 . . . 50 72 3 . . . . . . Critical Hits 1 | . . . 1 . . . . . . . . . . . . Critical Kills . | . . . . . . . . . . . . . . . . Critical Parts Destroyed 1 | . . . 1 . . . . . . . . . . . . Melee Attacks 2 | . . . . . . . . . . 2 . . . . . Impact . | . . . . . . . . . . . . . . . . Slashing 2 | . . . . . . . . . . 2 . . . . . Piercing . | . . . . . . . . . . . . . . . . Sneak Attacks . | . . . . . . . . . . . . . . . . Combat Hostiles . | . . . . . . . . . . . . . . . . Follow-up Attacks . | . . . . . . . . . . . . . . . . Damage Inflicted 8017 | . 1344 73 1956 . . . 827 3777 40 . . . . . . Guns 4682 | . 1344 73 1956 . . . 827 442 40 . . . . . . Cannons 1444 | . . . . . . . . 1444 . . . . . . . Explosions 1891 | . . . . . . . . 1891 . . . . . . . Melee . | . . . . . . . . . . . . . . . . Ramming . | . . . . . . . . . . . . . . . . Kinetic 4045 | . 1233 73 1501 . . . 796 442 . . . . . . . Thermal 2464 | . 111 . 455 . . . 31 1827 40 . . . . . . Explosive 200 | . . . . . . . . 200 . . . . . . . Electromagnetic 1308 | . . . . . . . . 1308 . . . . . . . Impact . | . . . . . . . . . . . . . . . . Slashing . | . . . . . . . . . . . . . . . . Piercing . | . . . . . . . . . . . . . . . . Highest Corruption 2 | . . . . . . . . 1 . 2 . . . . 2 Average Corruption 1 | . . . . . . . . 1 . 1 . . . . 1 Corruption Purged . | . . . . . . . . . . . . . . . . Effects 7 | . . . . . . . . . . 6 . . . . 1 Message Errors 2 | . . . . . . . . . . 1 . . . . 1 Heat Flow Errors 2 | . . . . . . . . . . 2 . . . . . Data Loss (minor) 3 | . . . . . . . . . . 3 . . . . . Overload Shots 9 | . . . . . . . . 9 . . . . . . . Overflow Damage 50 | . . . . . . . . 50 . . . . . . . Projectiles 17 | . . . . . . . . 17 . . . . . . . Explosions 33 | . . . . . . . . 33 . . . . . . . Melee . | . . . . . . . . . . . . . . . . Knockbacks . | . . . . . . . . . . . . . . . . Impact . | . . . . . . . . . . . . . . . . Kinetic . | . . . . . . . . . . . . . . . . Secondary . | . . . . . . . . . . . . . . . . Self-Inflicted Damage 77 | . . . . . . . . 77 . . . . . . . Shots 3 | . . . . . . . . 3 . . . . . . . Rammed . | . . . . . . . . . . . . . . . . Targets Rammed . | . . . . . . . . . . . . . . . . Kicked . | . . . . . . . . . . . . . . . . Crushed . | . . . . . . . . . . . . . . . . Highest Temperature 374 | . 108 . 4 . . . 4 357 36 292 374 303 . . . Average Temperature 85 | . 36 . 4 . . . 3 105 19 55 137 114 . . . Received Heat Transfer 1461 | . 438 . 348 . . . 162 396 18 36 27 . . . 36 Effects 13 | . . . . . . . . 1 . 4 4 4 . . . Shutdowns 3 | . . . . . . . . . . . 3 . . . . Energy Bleed 2 | . . . . . . . . . . 2 . . . . . Interference 5 | . . . . . . . . . . 2 . 3 . . . Matter Decay 1 | . . . . . . . . 1 . . . . . . . Short Circuit 1 | . . . . . . . . . . . . 1 . . . Damage (minor) 1 | . . . . . . . . . . . 1 . . . . Siege Activations . | . . . . . . . . . . . . . . . . Robots Corrupted 2 | . . . . . . . . 2 . . . . . . . Combat Hostiles 2 | . . . . . . . . 2 . . . . . . . Parts Fried 5 | . . . . . . . . 5 . . . . . . . Impact Corruptions . | . . . . . . . . . . . . . . . . Robots Melted . | . . . . . . . . . . . . . . . . Combat Hostiles . | . . . . . . . . . . . . . . . . Parts Melted 3 | . . . . . . . . 2 1 . . . . . . Heat Transferred 4213 | . 333 . 1073 . . . 74 2622 111 . . . . . . Parts Sabotaged . | . . . . . . . . . . . . . . . . Parts Stolen . | . . . . . . . . . . . . . . . . Parts Stripped . | . . . . . . . . . . . . . . . . Power Chain Reactions 8 | . . . . . . . . 8 . . . . . . . Missiles Intercepted . | . . . . . . . . . . . . . . . . Alert | -11 -10 -10 -9 -9 -9 -8 -8 -8 -7 -6 -5 -5 -5 -5 -4 ------- Run | Scr Mat Min Mat Min Exi Min Mat Sto Fac Fac Fac Upp Upp Zhi Pro Peak Influence 494 | . 184 78 349 135 . . 232 344 258 182 494 . . . . Initial 156 | . . 8 29 135 . . . 22 156 32 . . . . . Average 106 | . 70 70 114 135 . . 45 137 146 91 153 . . . . Maximum Alert Level 2 | . . . 1 . . . 1 1 1 . 2 . . . . Low Security (%) 85 | 100 100 100 86 100 . 100 96 71 67 100 68 . . . . Level 1 11 | . . . 13 . . . 3 28 32 . . . . . . Level 2 2 | . . . . . . . . . . . 31 . . . . Level 3 . | . . . . . . . . . . . . . . . . Level 4 . | . . . . . . . . . . . . . . . . Level 5 . | . . . . . . . . . . . . . . . . High Security . | . . . . . . . . . . . . . . . . Max Security . | . . . . . . . . . . . . . . . . Squads Dispatched 21 | . 1 . 5 . . . 1 6 1 6 1 . . . . Investigation 7 | . . . 2 . . . . . . 4 1 . . . . Extermination . | . . . . . . . . . . . . . . . . Reinforcement 12 | . 1 . 3 . . . 1 4 1 2 . . . . . Assault 2 | . . . . . . . . 2 . . . . . . . Garrison . | . . . . . . . . . . . . . . . . Intercept . | . . . . . . . . . . . . . . . . Construction Impeded 2 | . . . . . . . . 2 . . . . . . . Haulers Reinforced . | . . . . . . . . . . . . . . . . Stealth | -11 -10 -10 -9 -9 -9 -8 -8 -8 -7 -6 -5 -5 -5 -5 -4 --------- Run | Scr Mat Min Mat Min Exi Min Mat Sto Fac Fac Fac Upp Upp Zhi Pro Distress Signals 9 | . 3 . 1 . . . 1 3 1 . . . . . . Communications Jammed . | . . . . . . . . . . . . . . . . Distress Signals . | . . . . . . . . . . . . . . . . Times Spotted 213 | . 23 3 54 . . . 18 46 12 17 16 15 2 . 7 Peak Tracking Total 9 | . 6 3 8 . . . 4 9 4 8 6 5 2 . 7 Tactical Retreats 30 | . 3 . 9 . . . 1 2 3 3 6 2 1 . . Traps | -11 -10 -10 -9 -9 -9 -8 -8 -8 -7 -6 -5 -5 -5 -5 -4 ------- Run | Scr Mat Min Mat Min Exi Min Mat Sto Fac Fac Fac Upp Upp Zhi Pro Traps Triggered 8 | . . . 2 . . . . 3 . 2 1 . . . . Indirectly . | . . . . . . . . . . . . . . . . Trap Hack Attempts . | . . . . . . . . . . . . . . . . Triggered . | . . . . . . . . . . . . . . . . Disarmed . | . . . . . . . . . . . . . . . . Reprogrammed 12 | . 12 . . . . . . . . . . . . . . Reused . | . . . . . . . . . . . . . . . . Traps Extracted . | . . . . . . . . . . . . . . . . Installed . | . . . . . . . . . . . . . . . . Triggered 1 | . . . . . . . . . . . . . 1 . . Machines | -11 -10 -10 -9 -9 -9 -8 -8 -8 -7 -6 -5 -5 -5 -5 -4 ---------- Run | Scr Mat Min Mat Min Exi Min Mat Sto Fac Fac Fac Upp Upp Zhi Pro Machines Disabled 4 | . . . . . . . . 4 . . . . . . . Max in Single Turn 2 | . . . . . . . . 2 . . . . . . . Garrison Access 1 | . . . . . . . . . . . 1 . . . . Machines Sabotaged . | . . . . . . . . . . . . . . . . Garrisons Compromised . | . . . . . . . . . . . . . . . . Overloaded Fab Kills . | . . . . . . . . . . . . . . . . Fab Network Shutdowns 1 | . . . . . . . . . . . 1 . . . . Hacking | -11 -10 -10 -9 -9 -9 -8 -8 -8 -7 -6 -5 -5 -5 -5 -4 --------- Run | Scr Mat Min Mat Min Exi Min Mat Sto Fac Fac Fac Upp Upp Zhi Pro Machines Accessed 61 | . 6 1 3 . 2 . 3 11 12 8 9 1 . 5 . Terminals 31 | . 5 1 2 . . . 2 10 3 3 5 . . . . Fabricators 6 | . . . . . . . . . 3 2 1 . . . . Repair Stations 6 | . . . . . . . 1 1 1 2 1 . . . . Recycling Units 5 | . 1 . . . . . . . 3 . 1 . . . . Scanalyzers 4 | . . . 1 . . . . . 2 1 . . . . . Garrison Access 1 | . . . . . . . . . . . 1 . . . . Total Hacks 171 | . 17 3 5 . 24 . 6 29 28 22 18 1 . 18 . Successful 99 | . 6 . 3 . 24 . 4 11 13 12 7 1 . 18 . Failed 72 | . 11 3 2 . . . 2 18 15 10 11 . . . . Catastrophic 17 | . 1 . 1 . . . 1 9 1 2 2 . . . . Database Lockouts . | . . . . . . . . . . . . . . . . Manual 30 | . 1 . 3 . 1 . 2 12 4 5 2 . . . . Terminals 71 | . 15 3 3 . . . 3 24 4 7 12 . . . . Fabricators 17 | . . . . . . . . . 8 7 2 . . . . Repair Stations 15 | . . . . . . . 3 5 2 4 1 . . . . Recycling Units 10 | . 2 . . . . . . . 6 . 2 . . . . Scanalyzers 14 | . . . 2 . . . . . 8 4 . . . . . Garrison Access 1 | . . . . . . . . . . . 1 . . . . Terminal Hacks 65 | . 5 . 1 . 24 . 2 7 . 4 3 1 . 18 . Record 29 | . . . . . 23 . . . . . . . . 6 . Part Schematic 4 | . . . . . . . . . . . . . . 4 . Robot Analysis 4 | . . . . . . . . . . . . . . 4 . Prototype ID Bank 6 | . 1 . . . . . 1 . . . . . . 4 . Open Door 5 | . . . . . . . . 4 . . . 1 . . . Branch Access Points 1 | . . . . . . . . . . 1 . . . . . Alert Level 2 | . . . . . . . . . . 1 1 . . . . Unreport Threat 5 | . . . 1 . . . 1 3 . . . . . . . Locate Traps 1 | . 1 . . . . . . . . . . . . . . Reprogram Traps 2 | . 2 . . . . . . . . . . . . . . Recall Investigation 1 | . . . . . . . . . . 1 . . . . . Hauler Manifests 1 | . 1 . . . . . . . . . . . . . . Registered Prototypes 1 | . . . . . . . . . . . 1 . . . . Zone Layout 2 | . . . . . . . . . . 1 1 . . . . EX-Prototype ID Bank 1 | . . . . . 1 . . . . . . . . . . Fabricator Hacks 11 | . . . . . . . . . 6 3 2 . . . . Load Schematic 6 | . . . . . . . . . 3 2 1 . . . . Build 5 | . . . . . . . . . 3 1 1 . . . . Repair Station Hacks 10 | . . . . . . . 2 4 2 2 . . . . . Scan Component 5 | . . . . . . . 1 2 1 1 . . . . . Repair 3 | . . . . . . . 1 2 . . . . . . . Refit 2 | . . . . . . . . . 1 1 . . . . . Recycling Unit Hacks 1 | . 1 . . . . . . . . . . . . . . Retrieve Components 1 | . 1 . . . . . . . . . . . . . . Scanalyzer 8 | . . . 2 . . . . . 3 3 . . . . . Insert Component 5 | . . . 1 . . . . . 2 2 . . . . . Analyze 3 | . . . 1 . . . . . 1 1 . . . . . Garrison Access Hacks 1 | . . . . . . . . . . . 1 . . . . Seal Access 1 | . . . . . . . . . . . 1 . . . . Unauthorized Hacks 3 | . . . . . . . . . 2 . 1 . . . . Terminals 3 | . . . . . . . . . 2 . 1 . . . . Assimilate 2 | . . . . . . . . . 1 . 1 . . . . Botnet 1 | . . . . . . . . . 1 . . . . . . Fabricators . | . . . . . . . . . . . . . . . . Repair Stations . | . . . . . . . . . . . . . . . . Recycling Units . | . . . . . . . . . . . . . . . . Scanalyzers . | . . . . . . . . . . . . . . . . Garrison Access . | . . . . . . . . . . . . . . . . Data Cores Recovered . | . . . . . . . . . . . . . . . . Used . | . . . . . . . . . . . . . . . . Hacking Detections 46 | . 6 1 3 . . . 2 10 11 7 6 . . . . Full Trace Events 6 | . . . . . . . . 1 . 4 1 . . . . Feedback Events 3 | . . . . . . . . . . 3 . . . . . Corruption 2 | . . . . . . . . . . 2 . . . . . Hackware Fried 1 | . . . . . . . . . . 1 . . . . . Feedback Blocked . | . . . . . . . . . . . . . . . . Robot Schematics Acquired . | . . . . . . . . . . . . . . . . Robots Built . | . . . . . . . . . . . . . . . . Matter . | . . . . . . . . . . . . . . . . Time . | . . . . . . . . . . . . . . . . Total Robot Build Rating . | . . . . . . . . . . . . . . . . Part Schematics Acquired 7 | . . . 1 . . . . . 1 1 . . . 4 . Parts Built 7 | . . . . . . . . . 3 2 2 . . . . Matter 1037 | . . . . . . . . . 657 190 190 . . . . Time 416 | . . . . . . . . . 290 31 95 . . . . Total Part Build Rating 29 | . . . . . . . . . 9 10 10 . . . . Parts Repaired 3 | . . . . . . . 1 2 . . . . . . . Time 144 | . . . . . . . 26 118 . . . . . . . Parts Recycled . | . . . . . . . . . . . . . . . . Recycled Matter . | . . . . . . . . . . . . . . . . Retrieved Matter . | . . . . . . . . . . . . . . . . Retrieved Components 10 | . 10 . . . . . . . . . . . . . . Parts Scanalyzed 4 | . . . 1 . . . . . 2 1 . . . . . Part Schematics Acquired 3 | . . . 1 . . . . . 1 1 . . . . . Parts Damaged . | . . . . . . . . . . . . . . . . Bothacking | -11 -10 -10 -9 -9 -9 -8 -8 -8 -7 -6 -5 -5 -5 -5 -4 ------------ Run | Scr Mat Min Mat Min Exi Min Mat Sto Fac Fac Fac Upp Upp Zhi Pro Used RIF Installer . | . . . . . . . . . . . . . . . . Robots Hacked . | . . . . . . . . . . . . . . . . Non-combat . | . . . . . . . . . . . . . . . . Combat . | . . . . . . . . . . . . . . . . Robot Hacks Applied . | . . . . . . . . . . . . . . . . Relay Couplers Released . | . . . . . . . . . . . . . . . . Robots Rewired . | . . . . . . . . . . . . . . . . Allies Hacked . | . . . . . . . . . . . . . . . . Hacks Repelled . | . . . . . . . . . . . . . . . . Allies | -11 -10 -10 -9 -9 -9 -8 -8 -8 -7 -6 -5 -5 -5 -5 -4 -------- Run | Scr Mat Min Mat Min Exi Min Mat Sto Fac Fac Fac Upp Upp Zhi Pro Total Allies 5 | . . . . . . . . 2 1 1 1 . . . . Largest Group 2 | . . . . . . . . 2 1 1 1 . . . . Highest-Rated Group 62 | . . . . . . . . 62 10 32 32 . . . . Highest-Rated Ally 32 | . . . . . . . . 31 10 32 32 . . . . Total Orders 6 | . . . . . . . . 4 1 . 1 . . . . ROAM 3 | . . . . . . . . 1 1 . 1 . . . . EXPLORE 2 | . . . . . . . . 2 . . . . . . . RETURN 1 | . . . . . . . . 1 . . . . . . . Ally Attacks 10 | . . . . . . . . 6 . 2 2 . . . . Total Damage 230 | . . . . . . . . 130 . 80 20 . . . . Kills 1 | . . . . . . . . . . 1 . . . . . Allies Corrupted . | . . . . . . . . . . . . . . . . Allies Melted . | . . . . . . . . . . . . . . . . Field Lobotomies 1 | . . . . . . . . . . 1 . . . . . Intel | -11 -10 -10 -9 -9 -9 -8 -8 -8 -7 -6 -5 -5 -5 -5 -4 ------- Run | Scr Mat Min Mat Min Exi Min Mat Sto Fac Fac Fac Upp Upp Zhi Pro Robot Analysis Total 4 | . . . . . . . . . . . . . . 4 . Derelict Logs Recovered 5 | . . . . 1 . . . . . . . 2 1 . 1 Drone Launches 3 | . . . . . . . . 3 . . . . . . . Drone Recoveries 2 | . . . . . . . . 2 . . . . . . . Exploration | -11 -10 -10 -9 -9 -9 -8 -8 -8 -7 -6 -5 -5 -5 -5 -4 ------------- Run | Scr Mat Min Mat Min Exi Min Mat Sto Fac Fac Fac Upp Upp Zhi Pro Turns Passed 9324 | 80 1025 168 1487 364 482 59 1130 1870 666 811 598 293 150 66 75 Spaces Moved 8002 | 56 657 103 569 203 257 27 312 615 957 1511 1196 715 443 192 189 Core 6 | 5 1 . . . . . . . . . . . . . . Treads 1593 | . . . 168 203 257 27 312 615 11 . . . . . . Legs 663 | . 159 103 401 . . . . . . . . . . . . Wheels 548 | 51 497 . . . . . . . . . . . . . . Hover . | . . . . . . . . . . . . . . . . Flight 5192 | . . . . . . . . . 946 1511 1196 715 443 192 189 Fastest Speed 20 | 50 100 150 150 180 180 200 180 165 26 23 20 26 26 25 20 Average Speed 71 | 95 111 150 158 180 183 200 186 168 32 24 24 26 26 25 28 Slowest Speed 200 | 100 200 150 180 180 200 200 200 190 190 25 28 26 26 26 102 Overloaded Moves 4 | . . . . . . . . . . . . . . . 4 Propulsion Burnouts . | . . . . . . . . . . . . . . . . Robots Hopped 24 | . . . . . . . . . 9 3 5 . 6 . 1 Cave-ins Triggered . | . . . . . . . . . . . . . . . . Teleports 1 | . . . . . . . . . . . . . . 1 . Exploration Rate (%) 42 | 4 70 30 39 44 61 12 19 90 28 32 29 64 66 63 22 Regions Visited 15 Branch Regions 9 Pre-discovered Areas 6 | . . . . . 1 . . . . . . 1 1 3 . Known Exits Taken 6 | . . . . . . . . . 1 1 1 1 1 1 . Unknown Exits Taken 9 | 1 1 1 1 1 1 1 1 1 . . . . . . . Scrap Searched 5 | . . . . 1 . . . . . . . 2 2 . . Spaces Dug 2 | . . . . . . . . . . 2 . . . . . Terrain Destroyed 55 | . . . . . . . . 53 . 2 . . . . . Melee 2 | . . . . . . . . . . 2 . . . . . Projectile 15 | . . . . . . . . 15 . . . . . . . AOE 38 | . . . . . . . . 38 . . . . . . . Terrain Rammed . | . . . . . . . . . . . . . . . . Walls Destroyed . | . . . . . . . . . . . . . . . . Machines Disabled . | . . . . . . . . . . . . . . . . Actions | -11 -10 -10 -9 -9 -9 -8 -8 -8 -7 -6 -5 -5 -5 -5 -4 --------- Run | Scr Mat Min Mat Min Exi Min Mat Sto Fac Fac Fac Upp Upp Zhi Pro Total 11057 | 82 801 107 967 202 271 33 795 1338 1307 1952 1494 820 471 208 209 Wait 2423 | 9 31 . 254 . . 7 418 599 298 384 270 101 31 . 21 Move 7942 | 55 656 102 568 202 256 26 311 614 939 1504 1185 714 432 191 187 Hop 21 | . . . . . . . . . 8 3 5 . 4 . 1 Pick Up 109 | 12 11 . 25 . 5 . 18 7 11 10 6 2 . 2 . Fast Attach 24 | . 3 . . . . . . 7 1 3 5 . 1 4 . Attach 53 | 6 5 . 11 . 3 . 6 . 12 6 4 . . . . Detach 10 | . . . . . 1 . . . 4 3 2 . . . . Swap 49 | . 6 . 4 . . . . 17 6 5 4 2 1 4 . Drop 114 | . 11 . 10 . 6 . 7 19 25 13 13 1 2 7 . Fire 288 | . 78 5 95 . . . 35 71 3 1 . . . . . Melee 2 | . . . . . . . . . . 2 . . . . . Ram . | . . . . . . . . . . . . . . . . Kick . | . . . . . . . . . . . . . . . . Crush . | . . . . . . . . . . . . . . . . Escape Stasis 22 | . . . . . . . . 4 . 18 . . . . . Rewire . | . . . . . . . . . . . . . . . . Trap . | . . . . . . . . . . . . . . . . Miscellaneous . | . . . . . . . . . . . . . . . . Route ------- -11/Scrapyard -10/Materials (discovered 3 exits: *Mat x2 / *Min) -10/Mines -9/Materials -9/Mines (discovered 2 exits: *Mat / *Exi) -9/Exiles -8/Mines -8/Materials -8/Storage -7/Factory -6/Factory (discovered 3 exits: *Fac / *Low x2) -5/Factory -5/Upper Caves -5/Upper Caves -5/Zhirov -4/Proximity Caves (discovered 1 exit: Fac) History --------- Turn | Location | Event 17 | -11/Scrapyard | Discovered new exit (range 16) 81 | -11/Scrapyard | Entered Materials 301 | -10/Materials | Build established: Mutant 381 | -10/Materials | Discovered new exit (range 7) 652 | -10/Materials | Discovered new exit (range 15) 766 | -10/Materials | Core integrity fell below 50% 831 | -10/Materials | Lost 3 parts (1p1n1w) 877 | -10/Materials | Discovered new exit (range 15) 1106 | -10/Materials | Entered Mines 1262 | -10/Mines | Discovered new exit (range 8) 1274 | -10/Mines | Entered Materials 1274 | -9/Materials | Evolved 2 slots: Utility x2 1869 | -9/Materials | Discovered new exit (range 8) 2761 | -9/Materials | Entered Mines 2995 | -9/Mines | Learned Materials non-interactive machine intel 3021 | -9/Mines | Discovered new exit (range 6) 3114 | -9/Mines | Deemed a non-threat by the Exiles lab entrance 3116 | -9/Mines | Discovered new exit (range 5) 3125 | -9/Mines | Entered Exiles 3169 | -9/Exiles | Met 8R-AWN 3196 | -9/Exiles | Met EX-HEX 3255 | -9/Exiles | Met EX-BIN 3280 | -9/Exiles | Aligned with FarCom system 3282 | -9/Exiles | Given EX-Vault access code 3327 | -9/Exiles | Opened EX-Vault 3343 | -9/Exiles | Found Field Lobotomy Kit 3381 | -9/Exiles | Warned to stay clear of 0b10 Research branches 3439 | -9/Exiles | Met EX-DEC 3450 | -9/Exiles | Learned location of Zion (-6) 3579 | -9/Exiles | Discovered new exit (range 15) 3607 | -9/Exiles | Left Exiles lab with Field Lobotomy Kit 3607 | -9/Exiles | Entered Mines 3641 | -8/Mines | Discovered new exit (range 10) 3666 | -8/Mines | Entered Materials 3666 | -8/Materials | Evolved 2 slots: Propulsion x2 3667 | -8/Materials | Loaded intel: 41 non-interactive machine locations 3811 | -8/Materials | Build established: Hauler-Mutant 4708 | -8/Materials | Discovered new exit (range 7) 4779 | -8/Materials | Repaired Flight Unit 4796 | -8/Materials | Entered Storage 6262 | -8/Storage | Repaired Hrd. Medium Armor Plating 6344 | -8/Storage | Repaired Cld. Plasma Cannon 6548 | -8/Storage | Met a pair of Derelict thieves 6649 | -8/Storage | Discovered new exit (range 9) 6666 | -8/Storage | Entered Factory 6666 | -7/Factory | Evolved 2 slots: Power x1, Utility x1 7114 | -7/Factory | Fabricated Imp. VTOL Module (x1) 7174 | -7/Factory | Build established: Scavenger-Sprinter 7232 | -7/Factory | Fabricated Imp. VTOL Module? 7319 | -7/Factory | Fabricated Imp. VTOL Module? 7326 | -7/Factory | Discovered new exit (range 9) 7329 | -7/Factory | Identified exit to Factory 7332 | -7/Factory | Entered another Factory area 7332 | -6/Factory | Evolved 2 slots: Propulsion x1, Utility x1 7456 | -6/Factory | Hacking Suite fried by hacking feedback 7535 | -6/Factory | Fabricated Nuclear Pulse Thruster (x2) 7902 | -6/Factory | Identified exit to Lower Caves 8048 | -6/Factory | Assimilated Y-54 Guardian with FLK Orb 8059 | -6/Factory | Discovered new exit (range 11) 8066 | -6/Factory | Identified exit to Factory 8143 | -6/Factory | Entered another Factory area 8143 | -5/Factory | Accompanied by 1 ally 8143 | -5/Factory | Evolved 2 slots: Power x1, Propulsion x1 8419 | -5/Factory | Discovered new exit (range 18) 8550 | -5/Factory | Local fabrication network quarantined 8554 | -5/Factory | Fabricated Nuclear Pulse Thruster? 8607 | -5/Factory | Build established: Generator-Scout 8741 | -5/Factory | Identified exit to Upper Caves 8741 | -5/Factory | Entered Upper Caves 8750 | -5/Upper Caves | Identified exit to Upper Caves 9030 | -5/Upper Caves | Encountered a Warlord checkpoint 9034 | -5/Upper Caves | Entered another Upper Caves area 9078 | -5/Upper Caves | Spotted B-75 Beast 9144 | -5/Upper Caves | Discovered new exit (range 20) 9182 | -5/Upper Caves | Identified exit to Zhirov 9184 | -5/Upper Caves | Entered Zhirov 9184 | -5/Zhirov | Discovered new exit (range 3) 9185 | -5/Zhirov | Identified exit to Proximity Caves 9190 | -5/Zhirov | Met Zhirov 9200 | -5/Zhirov | Learned location of Quarantine (-2) 9200 | -5/Zhirov | Learned location of Testing (-3) 9200 | -5/Zhirov | Learned location of Command (-1) 9201 | -5/Zhirov | Zhirov requested help retrieving the SGEMP Prototype 9206 | -5/Zhirov | Found Alien Artifact 9207 | -5/Zhirov | Identified Transdimensional Reconstructor 9207 | -5/Zhirov | Warped through subspace 9238 | -5/Zhirov | Found Alien Artifact 9250 | -5/Zhirov | Entered Proximity Caves 9251 | -4/Proximity Caves | Identified exit to Factory 9260 | -4/Proximity Caves | Attracted the attention of an 0b10 checkpoint 9325 | -4/Proximity Caves | Self-destructed Last Messages --------------- situations. Without access to the craft itself, I'm unable to determine what component this particular module is intended for, but MAIN.C data points to it being one of many associated with the FTL drive, most likely related to energy or heat transfer. Zhirov uses his terminal. LOCATION=PROXIMITY CAVES GOAL=ESCAPE Acquired derelict log, extracted data. Y-64 Sentinel: "INTERCEPTING UNREGISTERED DERELICT." Slug penetrates Wall. Lgt. Fission Core destroyed. Lgt. Angular Momentum Engine destroyed. Penetrated by Slug. 8JZDX0A=HTGBO0CFB